Cogmind - Beta 13 *** ADVENTURER MODE // 2024.04.02 @ 15:35:43 Player: Orjis Result: Destroyed by G-34 Mercenary with Small Laser Performance ------------- Evolutions (0) 0 Regions Visited (2) 400 Robots Destroyed (21) 105 Value Destroyed (483) 483 Prototype IDs (0) 0 Alien Tech Used (0) 0 Bonus (-172) -172 TOTAL SCORE: 816 Bonus ------- Follower Combat Kills 35 Friendly Fire -207 Cogmind --------- Core Integrity 0/250 Matter 36/300 Energy 88/100 System Corruption 0% Temperature Cool (6) Movement Core (50) Location -10/Mines Parts ------- > --- POWER (1) -------- (None) > --- PROPULSION (2) --- (None) > --- UTILITY (2) ------ Signal Interpreter > --- WEAPON (2) ------- Mining Laser > --- INVENTORY (5) ---- Light Ion Engine Peak State ------------ > --- POWER ------------ Ion Engine > --- PROPULSION ------- Wheel Wheel > --- UTILITY ---------- High-capacity Storage Unit Signal Interpreter > --- WEAPON ----------- Assault Rifle Grenade Launcher > --- INVENTORY -------- Light Ion Engine Flight Unit Assault Rifle [Rating: 7] Favorites ----------- Power Ion Engine Engine Ion Engine Propulsion Wheel Wheel Wheel Flight Unit Flight Unit Utility Signal Interpreter Storage High-capacity Storage Unit Processor Signal Interpreter Protection Core Shielding Weapon Assault Rifle Ballistic Gun Assault Rifle Launcher Grenade Launcher Special Weapon Mining Laser Build | -11 -10 -10 ------- Run | Yrd Mat Min Slots Evolved . | . . . Power . | . . . Propulsion . | . . . Utility . | . . . Weapon . | . . . Parts Attached 28 | 7 17 4 Power 5 | 3 2 . Engine 5 | 3 2 . Core . | . . . Reactor . | . . . Propulsion 9 | 2 7 . Treads . | . . . Leg . | . . . Wheel 6 | 2 4 . Hover . | . . . Flight 3 | . 3 . Utility 3 | . 3 . Device . | . . . Storage 1 | . 1 . Processor 1 | . 1 . Hackware . | . . . Protection 1 | . 1 . Artifact . | . . . Weapon 11 | 2 5 4 Energy Gun . | . . . Energy Cannon . | . . . Ballistic Gun 7 | 2 3 2 Ballistic Cannon . | . . . Launcher 2 | . 1 1 Special Weapon 2 | . 1 1 Impact Weapon . | . . . Slashing Weapon . | . . . Piercing Weapon . | . . . Special Melee Weapon . | . . . Unidentified Prototypes . | . . . Parts Lost 7 | . . 7 Power 1 | . . 1 Propulsion 2 | . . 2 Utility 1 | . . 1 Weapon 3 | . . 3 Highest Loss Streak 7 | . . 7 To Critical Strikes . | . . . Average Slot Usage (%) 86 | . 91 73 Engine 12 | . 14 7 Wheel 22 | . 25 15 Flight 1 | . 1 . Storage 2 | . 2 . Processor 13 | . 13 14 Protection 7 | . 5 12 Ballistic Gun 13 | . 14 11 Launcher 10 | . 13 3 Special Weapon 2 | . . 7 Naked Turns . | . . . Heaviest Build 50 | 9 50 10 Greatest Support 20 | 20 20 20 Greatest Overweight (x) 2 | . 2 . Average Overweight (x) . | . . . Largest Inventory Capacity 20 | 5 20 5 Average Capacity 6 | 5 7 5 Most Carried 5 | 2 5 3 Average Carried 2 | . 2 2 Final Capacity 5 | 5 5 5 Final Carried 3 | 1 3 1 Class Distribution -------------------- 100% | Mutant Dominant Class ---------------- Mutant | -10/Materials Mutant | -10/Mines Resources | -11 -10 -10 ----------- Run | Yrd Mat Min Matter Collected 500 | 294 118 88 Remotely . | . . . Salvage Created 432 | 41 144 247 Parts 34 | 2 19 13 Haulers Intercepted . | . . . Recyclers Shooed . | . . . Parts Field Recycled . | . . . Retrieved Matter . | . . . Parts Self-Destructed . | . . . Prevented . | . . . Kills | -11 -10 -10 ------- Run | Yrd Mat Min Combat Hostiles Destroyed 15 | 1 8 6 Guns 3 | 1 1 1 AOE 12 | . 7 5 Classes Destroyed 5 | 1 2 2 Tunneler 1 | . . 1 Mechanic 1 | . . 1 Watcher 3 | . 3 . Swarmer 6 | . 6 . Grunt 9 | 1 2 6 Thug 1 | . . 1 Best Kill Streak 6 | 1 5 6 Combat Bots Only 5 | 1 3 5 Max Kills in Single Turn 3 | 1 3 3 Gunslinging . | . . . Exploded 3 | . 3 3 Melee . | . . . Uniques/NPCs Destroyed . | . . . Combat | -11 -10 -10 -------- Run | Yrd Mat Min Hostile Shots Fired 129 | 6 54 69 Missed 47 | 1 22 24 Damage Taken 729 | 41 249 439 Core 255 | 17 60 178 Absorbed by Shields . | . . . Redirected to Shielding 24 | . 5 19 Ignored by Resistances 235 | 13 82 140 Core Remaining (%) 93 | 93 . . Volleys Fired 41 | 4 10 27 Largest 2 | 2 2 2 Hottest 50 | 40 50 40 Shots Fired 62 | 8 20 34 Gun 43 | 8 10 25 Cannon . | . . . Launcher 19 | . 10 9 Special . | . . . Kinetic 43 | 8 10 25 Thermal . | . . . Explosive 19 | . 10 9 Electromagnetic . | . . . Robot Hit Streak 9 | 4 3 9 Robot Miss Streak 1 | 1 1 1 Penetration Max . | . . . Secondary Targets . | . . . Shots Hit Robots 46 | 6 11 29 Core Hits 33 | 1 15 17 Critical Kills . | . . . Critical Parts Destroyed 1 | . . 1 Critical Strikes 1 | . . 1 Destroy 1 | . . 1 Melee Attacks . | . . . Impact . | . . . Slashing . | . . . Piercing . | . . . Sneak Attacks . | . . . Combat Hostiles . | . . . Follow-up Attacks . | . . . Damage Inflicted 1481 | 91 576 814 Guns 411 | 91 51 269 Cannons . | . . . Explosions 1070 | . 525 545 Melee . | . . . Ramming . | . . . Kinetic 411 | 91 51 269 Thermal . | . . . Explosive 1070 | . 525 545 Electromagnetic . | . . . Impact . | . . . Slashing . | . . . Piercing . | . . . Highest Corruption . | . . . Average Corruption . | . . . Corruption Purged . | . . . Corruption Blocked . | . . . Overload Shots . | . . . Overflow Damage 2 | . . 2 Projectiles . | . . . Explosions 2 | . . 2 Melee . | . . . Knockbacks . | . . . Impact . | . . . Kinetic . | . . . Secondary . | . . . Self-Inflicted Damage 41 | . 19 22 Shots 4 | . 2 2 Rammed . | . . . Targets Rammed . | . . . Kicked . | . . . Crushed . | . . . Highest Temperature 12 | . 7 12 Average Temperature 4 | . 3 4 Received Heat Transfer 369 | 30 39 300 Siege Activations . | . . . Robots Corrupted . | . . . Combat Hostiles . | . . . Parts Fried . | . . . Impact Corruptions . | . . . Robots Melted . | . . . Combat Hostiles . | . . . Parts Melted . | . . . Heat Transferred . | . . . Parts Sabotaged . | . . . Parts Stolen . | . . . Parts Stripped . | . . . Power Chain Reactions . | . . . Alert | -11 -10 -10 ------- Run | Yrd Mat Min Peak Influence 276 | 20 276 274 Initial 90 | . 11 90 Average 99 | 6 89 207 Maximum Alert Level 1 | . 1 1 Low Security (%) 78 | 100 86 34 Level 1 21 | . 13 65 Level 2 . | . . . Level 3 . | . . . Level 4 . | . . . Level 5 . | . . . High Security . | . . . Max Security . | . . . Squads Dispatched 2 | . . 2 Investigation . | . . . Extermination . | . . . Reinforcement . | . . . Assault 2 | . . 2 Garrison . | . . . Intercept . | . . . Searches Triggered . | . . . Construction Impeded . | . . . Haulers Reinforced . | . . . Active Scanning Responses . | . . . Cargo Convoy Interrupts . | . . . Stealth | -11 -10 -10 --------- Run | Yrd Mat Min Distress Signals 2 | . 1 1 Communications Jammed . | . . . Distress Signals . | . . . Times Spotted 27 | 1 12 14 Peak Tracking Total 5 | 1 5 5 Tactical Retreats . | . . . Traps | -11 -10 -10 ------- Run | Yrd Mat Min Traps Triggered 1 | . 1 . Indirectly . | . . . Trap Hack Attempts . | . . . Triggered . | . . . Disarmed . | . . . Reprogrammed . | . . . Reused . | . . . Traps Extracted . | . . . Installed . | . . . Triggered . | . . . Machines | -11 -10 -10 ---------- Run | Yrd Mat Min Machines Disabled 1 | . 1 . Max in Single Turn 1 | . 1 . Machines Repaired . | . . . Machines Dismantled . | . . . Machines Sabotaged . | . . . Overloaded Fab Kills . | . . . Hacking | -11 -10 -10 --------- Run | Yrd Mat Min Machines Accessed 1 | . 1 . Terminals 1 | . 1 . Fabricators . | . . . Repair Stations . | . . . Recycling Units . | . . . Scanalyzers . | . . . Garrison Access . | . . . Total Hacks 3 | . 3 . Successful 3 | . 3 . Failed . | . . . Catastrophic . | . . . Database Lockouts . | . . . Manual . | . . . Terminals 3 | . 3 . Fabricators . | . . . Repair Stations . | . . . Recycling Units . | . . . Scanalyzers . | . . . Garrison Access . | . . . Terminal Hacks 3 | . 3 . Record 1 | . 1 . Alert Level 2 | . 2 . Fabricator Hacks . | . . . Repair Station Hacks . | . . . Recycling Unit Hacks . | . . . Scanalyzer . | . . . Garrison Access Hacks . | . . . Unauthorized Hacks . | . . . Terminals . | . . . Fabricators . | . . . Repair Stations . | . . . Recycling Units . | . . . Scanalyzers . | . . . Garrison Access . | . . . Data Cores Recovered . | . . . Used . | . . . Hacking Detections 1 | . 1 . Full Trace Events 1 | . 1 . Feedback Events . | . . . Feedback Blocked . | . . . Robot Schematics Acquired . | . . . Robots Built . | . . . Authchips . | . . . Time . | . . . Total Robot Build Rating . | . . . Part Schematics Acquired . | . . . Parts Built . | . . . Authchips . | . . . Time . | . . . Total Part Build Rating . | . . . Parts Repaired . | . . . Time . | . . . Parts Recycled . | . . . Recycled Matter . | . . . Retrieved Matter . | . . . Retrieved Components . | . . . Parts Scanalyzed . | . . . Part Schematics Acquired . | . . . Parts Damaged . | . . . Bothacking | -11 -10 -10 ------------ Run | Yrd Mat Min Used RIF Installer . | . . . Robots Hacked . | . . . Non-combat . | . . . Combat . | . . . Robot Hacks Applied . | . . . Relay Couplers Released . | . . . Fabnet Peak Effective % . | . . . Robots Rewired . | . . . Allies Hacked . | . . . Hacks Repelled . | . . . Allies | -11 -10 -10 -------- Run | Yrd Mat Min Total Allies 1 | . . 1 Largest Group 1 | . . 1 Highest-Rated Group 31 | . . 31 Highest-Rated Ally 31 | . . 31 Total Orders . | . . . Ally Attacks 4 | . . 4 Total Damage 81 | . . 81 Kills 1 | . . 1 Allies Corrupted . | . . . Allies Melted . | . . . Intel | -11 -10 -10 ------- Run | Yrd Mat Min Robot Analysis Total . | . . . Derelict Logs Recovered . | . . . Drone Launches . | . . . Drone Recoveries . | . . . Exploration | -11 -10 -10 ------------- Run | Yrd Mat Min Turns Passed 501 | 88 310 103 Spaces Moved 405 | 84 274 47 Core 22 | 18 . 4 Treads . | . . . Legs . | . . . Wheels 364 | 66 255 43 Hover . | . . . Flight 19 | . 19 . Fastest Speed 37 | 50 37 50 Average Speed 85 | 73 90 77 Slowest Speed 200 | 80 200 80 Overloaded Moves . | . . . Propulsion Burnouts . | . . . Robots Hopped . | . . . Cave-ins Triggered . | . . . Exploration Rate (%) 25 | 6 49 20 Regions Visited 2 Branch Regions 1 Pre-discovered Areas . | . . . Known Exits Taken 1 | . 1 . Unknown Exits Taken 1 | 1 . . Scrap Searched . | . . . Spaces Dug . | . . . Terrain Destroyed 85 | . 27 58 Melee . | . . . Projectile . | . . . AOE 85 | . 27 58 Terrain Rammed . | . . . Walls Destroyed . | . . . Machines Disabled . | . . . Actions | -11 -10 -10 --------- Run | Yrd Mat Min Total 499 | 101 319 79 Wait . | . . . Move 403 | 83 273 47 Hop . | . . . Pick Up 13 | 6 7 . Fast Attach . | . . . Attach 23 | 6 14 3 Detach 11 | 1 9 1 Swap 5 | 1 3 1 Drop 3 | . 3 . Fire 41 | 4 10 27 Melee . | . . . Ram . | . . . Kick . | . . . Crush . | . . . Escape Stasis . | . . . Rewire . | . . . Trap . | . . . Miscellaneous . | . . . Route ------- -11/Scrapyard -10/Materials -10/Mines (discovered 1 exit: [*Mat]) History --------- Turn | Location | Event 2 | -11/Scrapyard | Met Revision 17 43 | -11/Scrapyard | Discovered new exit (range 8) 89 | -11/Scrapyard | Entered Materials 246 | -10/Materials | Discovered new exit (range 13) 300 | -10/Materials | Build established: Mutant 399 | -10/Materials | Identified exit to Mines 399 | -10/Materials | Entered Mines 400 | -10/Mines | Met a Derelict testing a Signal Generator 481 | -10/Mines | Core integrity fell below 50% 495 | -10/Mines | Core integrity fell below 20% 501 | -10/Mines | Discovered new exit (range 13) 502 | -10/Mines | Destroyed by G-34 Mercenary with Small Laser Last Messages --------------- U-05 Engineer lays Concrete. K-01 Serf collects debris. U-05 Engineer lays Concrete. K-01 Serf collects debris. U-05 Engineer builds a Wall. U-05 Engineer lays Concrete. U-05 Engineer builds a Wall. K-01 Serf collects debris. Core Shielding destroyed. U-05 Engineer lays Concrete. M-13 Machinist destroyed. U-05 Engineer lays Concrete. The unstable cave ceiling collapses. U-05 Engineer builds a Wall. U-05 Engineer lays Concrete. Assault Rifle destroyed. R-06 Scavenger collects Wheel. U-05 Engineer builds a Wall. EXIT=FOUND [Achievement: First Step to Greatness] Map ----- +----------------------------------------------------+ | | | | | | | | | | | | | | | | | | | | | | | | | ?????????????????????????????????????????????????? | | ?????????????????????????????????????????????????? | | ?????????????????????????????????????????????????? | | ?????????????????????????????????????????????????? | | ???????????????????????####????#?????????????????? | | ???????????????????????# ?? #?????????????????? | | ???????????????????????# #?????????????????? | | ???????????????????????# """ #?????????????????? | | ???????????????????????# """ #?????????????????? | | ???????????????????????# """ ??????????????????? | | ???????????????????????# ???????????????????? | | ???????????????????????# ???####?????????????? | | ???????????????????????## ###### ##??????######? | | ???????????????????##### @ # #?????## ## | | ??????????# ##### ! #????## | | ????????? " u% % ## ##???# | | ????????? % g r %## # #?# | | ????????? m####### g #### | | ???????????